{"text_format":"3","workbook":"xlsx","n_sheets":2,"sheets":["Darbību izsekotājs","Darbību saraksts"],"not_rendered":{"charts":1,"defined_names":15},"read":"whole","date_system":"1900"}

{"sheet":"Darbību izsekotājs","index":0,"n_rows":23,"n_cols":11,"rows_kept":23,"merged":[[0,0,0,2],[0,3,3,10],[1,0,1,2],[2,0,5,0],[2,1,3,1],[4,1,5,1],[6,0,9,0],[6,1,7,1],[8,1,9,1],[10,0,13,0],[10,1,11,1],[12,1,13,1],[14,0,17,0],[14,1,15,1],[16,1,17,1],[18,0,21,0],[18,1,19,1],[20,1,21,1],[22,0,23,0],[22,1,23,1],[22,2,23,2]]}
["Darbību izsekotājs"]
["Uzskaitiet 5 populārākās darbības! Aizstājiet tālāk esošo darbību informāciju ar biežāk veiktajām darbībām. Pēc tam pievienojiet to ierakstus darbību žurnālam, lai sekotu savam progresam."]
["Riteņbraukšana",{"$f":"SUMIF(Saraksts[Darbība],_1.kategorija,Saraksts[Kopā])","v":{"v":19.46,"d":"19.5"}}]
[null,null,"Km"]
[null,{"$f":"SUMIF(Saraksts[Darbība],_1.kategorija,Saraksts[Kalorijas])","v":847},"Kalorijas","Datums","Darbība","Sākuma laiks","Ilgums","Kopā","Vienība","Kalorijas","Piezīme"]
[{"$nulls":3},"Datums","Riteņbraukšana","16:00:00","00:23:00",3.66,{"$f":"IFERROR(VLOOKUP(Saraksts[[#This Row],[Darbība]],DarbībasUzmeklēšana,2,FALSE),\"\")","v":"Km"},173,"Karsts un mitrs"]
["Peldēšana",{"$f":"SUMIF(Saraksts[Darbība],_2.kategorija,Saraksts[Kopā])","v":{"v":1700,"d":"1700.0"}},null,"Datums","Riteņbraukšana","14:30:00","00:45:00",7.8,{"$f":"IFERROR(VLOOKUP(Saraksts[[#This Row],[Darbība]],DarbībasUzmeklēšana,2,FALSE),\"\")","v":"Km"},330,"Vēsa pēcpusdiena"]
[null,null,"Metri","Datums","Peldēšana","10:00:00","00:30:00",1700,{"$f":"IFERROR(VLOOKUP(Saraksts[[#This Row],[Darbība]],DarbībasUzmeklēšana,2,FALSE),\"\")","v":"Metri"},237,"Iepriekš labi gulēta nakts"]
[null,{"$f":"SUMIF(Saraksts[Darbība],_2.kategorija,Saraksts[Kalorijas])","v":237},"Kalorijas","Datums","3. darbība","13:30:00","00:35:00",3227,{"$f":"IFERROR(VLOOKUP(Saraksts[[#This Row],[Darbība]],DarbībasUzmeklēšana,2,FALSE),\"\")","v":"Soļi"},150]
[{"$nulls":3},"Datums","4. darbība","05:30:00","00:30:00",30,{"$f":"IFERROR(VLOOKUP(Saraksts[[#This Row],[Darbība]],DarbībasUzmeklēšana,2,FALSE),\"\")","v":"Atkārtojumi"},115]
["3. darbība",{"$f":"SUMIF(Saraksts[Darbība],_3.kategorija,Saraksts[Kopā])","v":{"v":3227,"d":"3227.0"}},null,"Datums","5. darbība","06:00:00","00:45:00",5,{"$f":"IFERROR(VLOOKUP(Saraksts[[#This Row],[Darbība]],DarbībasUzmeklēšana,2,FALSE),\"\")","v":"Km"},345]
[null,null,"Soļi","Datums","Riteņbraukšana","10:00:00","00:40:00",8,{"$f":"IFERROR(VLOOKUP(Saraksts[[#This Row],[Darbība]],DarbībasUzmeklēšana,2,FALSE),\"\")","v":"Km"},344]
[null,{"$f":"SUMIF(Saraksts[Darbība],_3.kategorija,Saraksts[Kalorijas])","v":150},"Kalorijas"]
[]
["4. darbība",{"$f":"SUMIF(Saraksts[Darbība],_4.kategorija,Saraksts[Kopā])","v":{"v":30,"d":"30.0"}}]
[null,null,"Atkārtojumi"]
[null,{"$f":"SUMIF(Saraksts[Darbība],_4.kategorija,Saraksts[Kalorijas])","v":115},"Kalorijas"]
[]
["5. darbība",{"$f":"SUMIF(Saraksts[Darbība],_5.kategorija,Saraksts[Kopā])","v":{"v":5,"d":"5.0"}}]
[null,null,"Km"]
[null,{"$f":"SUMIF(Saraksts[Darbība],_5.kategorija,Saraksts[Kalorijas])","v":345},"Kalorijas"]
[]
["Kopā",{"$f":"SUM(B21,B17,B13,B9,B5)","v":1694},"Kalorijas"]

{"sheet":"Darbību saraksts","index":1,"n_rows":8,"n_cols":3,"rows_kept":8,"hidden":true,"merged":[[0,1,0,2],[1,1,1,2]]}
[null,"Darbību saraksts"]
[null,"Tālāk esošais saraksts ir saistīts ar pielāgotajām darbībām, un aizpilda nolaižamo sarakstu darbību žurnālā. Šai lapa ir jāpaliek paslēptai."]
[null,"Darbība","Vienība"]
[null,{"$f":"TRIM(_1.kategorija)","v":"Riteņbraukšana"},{"$f":"_1.kategorijasVienība","v":"Km"}]
[null,{"$f":"TRIM(_2.kategorija)","v":"Peldēšana"},{"$f":"_2.kategorijasVienība","v":"Metri"}]
[null,{"$f":"TRIM(_3.kategorija)","v":"3. darbība"},{"$f":"_3.kategorijasVienība","v":"Soļi"}]
[null,{"$f":"TRIM(_4.kategorija)","v":"4. darbība"},{"$f":"_4.kategorijasVienība","v":"Atkārtojumi"}]
[null,{"$f":"TRIM(_5.kategorija)","v":"5. darbība"},{"$f":"_5.kategorijasVienība","v":"Km"}]